bitfinex-derivatives/quotes_BTCF0:USTF0_20241125
["timestamp","ask_amount","ask_price","bid_price","bid_amount"]
[1732548616830,0.412762,96209.0,96195.0,0.051969]
[1732548617329,0.412762,96209.0,96192.0,0.0223599]
[1732548617330,0.3608,96208.0,96192.0,0.0223599]
[1732548617525,0.3608,96212.0,96192.0,0.3831599]
[1732548617822,0.051962,96209.0,96192.0,0.3831599]
[1732548618020,0.3608,96203.0,96192.0,0.3831599]
[1732548618221,0.24984,96202.0,96192.0,0.3831599]
[1732548618832,0.24984,96202.0,96192.0,0.0223599]
[1732548619133,0.3608,96216.0,96210.0,0.051961]
[1732548619340,0.3608,96220.0,96198.0,0.3608]
[1732548619524,0.05196,96214.0,96201.0,0.051966]
[1732548619730,0.3608,96208.0,96201.0,0.051966]
[1732548619931,0.3608,96208.0,96193.0,0.3608]
[1732548620133,0.051964,96205.0,96200.0,0.051967]
[1732548620354,0.2498,96204.0,96193.0,0.3608]
[1732548620534,0.05197,96194.0,96192.0,0.00155939]
[1732548620737,0.05197,96194.0,96172.0,0.24751124]
[1732548620738,0.051971,96193.0,96172.0,7.892e-05]
[1732548621070,0.3608,96183.0,96172.0,0.02101058]
[1732548621332,0.0004,96173.0,96172.0,0.05206092]
[1732548621533,0.3258,96193.0,96192.0,0.051971]
[1732548621731,0.3258,96193.0,96179.0,0.3608]
[1732548621732,0.57564,96193.0,96179.0,0.3608]
[1732548621957,0.3258,96193.0,96192.0,0.05237101]
[1732548622128,0.2488,96196.0,96195.0,0.051969]
[1732548622324,0.2488,96196.0,96192.0,0.00040001]
[1732548622325,0.6096,96196.0,96192.0,0.00040001]
[1732548622533,0.31188,96195.0,96179.0,0.3608]
[1732548622745,0.3608,96188.0,96172.0,0.02112839]
[1732548623041,0.0004,96173.0,96172.0,0.02112839]
[1732548623228,0.0004,96173.0,96172.0,0.07311039]
[1732548623827,0.0004,96173.0,96172.0,0.07831246]
[1732548624434,0.3318,96199.0,96172.0,0.38713062]
[1732548624435,0.3608,96193.0,96172.0,0.38713062]
[1732548624624,0.3608,96193.0,96173.0,0.01170424]
[1732548624843,0.3318,96199.0,96172.0,0.38192839]
[1732548624844,0.051974,96188.0,96175.0,0.00074133]
[1732548625026,0.3318,96199.0,96197.0,0.051968]
[1732548625262,0.3318,96199.0,96176.0,0.01170424]
[1732548625263,0.300768,96198.0,96189.0,0.051973]
[1732548625429,0.300768,96198.0,96176.0,0.3016]
[1732548625430,0.2488,96198.0,96190.0,0.00520161]
[1732548625682,0.2488,96198.0,96181.0,0.3608]
[1732548625683,0.2488,96198.0,96194.0,0.05197]
[1732548625823,0.2488,96198.0,96195.0,0.01495442]
[1732548626157,0.2488,96198.0,96190.0,0.3608]
[1732548626158,0.051968,96197.0,96196.0,0.01495442]
[1732548626632,0.724648,96197.0,96196.0,0.01495442]
[1732548626828,0.724648,96197.0,96196.0,0.03616917]
[1732548627025,0.724648,96197.0,96163.0,0.30285959]
[1732548627026,0.051975,96186.0,96181.0,0.05271838]
[1732548627232,0.3608,96190.0,96171.0,0.60823232]
[1732548627524,0.3608,96190.0,96188.0,0.051973]
[1732548627736,0.3608,96190.0,96175.0,0.00074134]
[1732548627923,0.051979,96178.0,96176.0,0.00650293]
[1732548628129,0.0004,96176.0,96172.0,0.02082644]
[1732548628335,0.3608,96173.0,96172.0,0.02082644]
[1732548628526,0.3612,96173.0,96172.0,0.02082644]
[1732548628728,0.3612,96173.0,96172.0,0.07382687]
[1732548628935,0.0004,96173.0,96172.0,0.07382687]
[1732548629526,0.0004,96173.0,96172.0,0.08033019]
[1732548631831,0.0004,96173.0,96172.0,0.32877939]
[1732548632224,0.0004,96173.0,96172.0,0.08033019]
[1732548632841,0.0004,96173.0,96172.0,0.07382687]
[1732548633079,0.0004,96173.0,96172.0,0.08032923]
[1732548634044,0.0004,96176.0,96172.0,0.08032923]
[1732548634338,0.2488,96203.0,96175.0,0.3608]
[1732548634536,0.2488,96203.0,96188.0,0.3608]
[1732548634739,0.2488,96203.0,96194.0,0.00101843]
[1732548634934,0.3608,96208.0,96194.0,0.00101843]
[1732548635142,0.327,96229.0,96201.0,0.051966]
[1732548635143,0.2488,96215.0,96201.0,0.051966]
[1732548635341,0.2488,96215.0,96207.0,0.00160001]
[1732548635553,0.488919,96214.0,96213.0,0.00160001]
[1732548636075,0.74876,96214.0,96213.0,0.00261844]
[1732548638435,0.43696,96214.0,96213.0,0.00261844]
[1732548638846,0.6251,96239.0,96213.0,0.71458844]
[1732548639187,0.36235912,96249.0,96213.0,0.71458844]
[1732548639188,0.3608,96241.0,96239.0,0.051945]
[1732548639366,0.02080404,96240.0,96239.0,0.051945]
[1732548639756,0.02080404,96240.0,96239.0,0.05519453]
[1732548639952,0.36235912,96249.0,96247.0,0.051941]
[1732548640141,0.3608,96249.0,96247.0,0.051941]
[1732548640450,0.3608,96249.0,96239.0,0.384246]
[1732548640647,0.3608,96249.0,96240.0,0.00519879]
[1732548640949,0.02080404,96248.0,96241.0,0.01494653]
[1732548641174,0.02080404,96248.0,96242.0,0.01494653]
[1732548641354,0.02080404,96248.0,96243.0,0.01494653]
[1732548641646,0.02080404,96248.0,96244.0,0.06688953]
[1732548641845,0.02080404,96248.0,96245.0,0.01494653]
[1732548642061,0.02080404,96248.0,96246.0,0.01494653]
[1732548642240,0.3608,96249.0,96247.0,0.06688753]
[1732548642555,0.3608,96249.0,96248.0,0.01494653]
[1732548642955,0.3608,96257.0,96256.0,0.051937]
[1732548643148,0.24876,96259.0,96258.0,0.051935]
[1732548643358,0.24876,96259.0,96258.0,0.06688153]
[1732548643857,0.3608,96267.0,96256.0,0.0004]
[1732548644044,0.3608,96267.0,96262.0,0.051933]
[1732548644349,0.3608,96267.0,96262.0,0.06727709]
[1732548644458,0.3608,96267.0,96262.0,0.0004]
[1732548644644,0.24876,96275.0,96263.0,0.00974608]
[1732548644645,0.3608,96274.0,96263.0,0.00974608]
[1732548644843,0.02080404,96279.0,96276.0,0.051925]
[1732548645048,0.43684,96292.0,96282.0,0.051922]
[1732548645049,0.60956,96288.0,96282.0,0.051922]
[1732548645245,0.60956,96288.0,96278.0,0.00073908]
[1732548645246,0.24876,96288.0,96286.0,0.05192]
[1732548645451,0.26952404,96295.0,96290.0,0.051918]
[1732548645752,0.26952404,96295.0,96294.0,0.0004]
[1732548646047,0.63032404,96295.0,96294.0,0.0088466]
[1732548646252,0.38160404,96295.0,96294.0,0.0088466]
[1732548646452,0.3608,96305.0,96294.0,0.01534219]
[1732548646752,0.3608,96305.0,96295.0,0.0084466]
[1732548646753,0.02079407,96297.0,96295.0,0.0084466]
[1732548646948,1.0222,96296.0,96268.0,0.04766908]
[1732548647140,0.3608,96289.0,96272.0,0.3608]
[1732548647368,0.1,96300.0,96280.0,0.3608]
[1732548647588,0.1,96300.0,96298.0,0.051914]
[1732548647751,0.6609,96317.0,96288.0,0.3608]
[1732548647752,0.3608,96352.0,96299.0,1.05281506]
[1732548647945,0.051887,96349.0,96334.0,0.3608]
[1732548648185,0.02079407,96337.0,96334.0,0.412694]
[1732548648644,0.0052531,96351.0,96334.0,0.3608]
[1732548648854,0.0052531,96351.0,96344.0,0.3608]
[1732548649048,0.31156065,96345.0,96344.0,0.3608]
[1732548649253,0.01,96360.0,96344.0,0.3608]
[1732548649451,0.3608,96353.0,96345.0,0.00649124]
[1732548649757,0.31156065,96353.0,96346.0,0.00649124]
[1732548649964,0.15159471,96360.0,96358.0,0.051881]
[1732548649965,0.01,96360.0,96358.0,0.051881]
[1732548650210,0.01,96360.0,96359.0,0.00649124]
[1732548650452,0.32156065,96360.0,96359.0,0.00689124]
[1732548650902,0.01,96360.0,96359.0,0.00689124]
[1732548651357,0.3608,96365.0,96359.0,0.00689124]
[1732548651654,0.02079407,96368.0,96364.0,0.0004]
[1732548651958,0.31156065,96367.0,96365.0,0.00649032]
[1732548652174,0.051869,96381.0,96366.0,0.00649032]
[1732548652356,0.14159471,96390.0,96367.0,0.00649032]
[1732548652357,0.31156065,96372.0,96367.0,0.00649032]
[1732548652558,0.14159471,96380.0,96368.0,0.00649032]
[1732548652857,0.31156065,96367.0,96351.0,0.3882907]
[1732548653057,0.09348871,96369.0,96367.0,0.051877]
[1732548653240,0.24788,96383.0,96368.0,0.00649005]
[1732548653450,0.08648871,96370.0,96369.0,0.00649005]
[1732548653655,0.14159471,96380.0,96369.0,0.00649005]
[1732548653845,0.14159471,96380.0,96368.0,0.0004]
[1732548653846,0.051861,96396.0,96370.0,0.00649018]
[1732548654060,0.24788,96389.0,96373.0,0.0004]
[1732548654254,0.08648871,96376.0,96375.0,0.051872]
[1732548654844,0.051861,96397.0,96372.0,0.3608]
[1732548654845,0.36604902,96397.0,96372.0,0.3608]
[1732548655045,0.08648871,96387.0,96372.0,0.3608]
[1732548655266,0.0004,96373.0,96372.0,0.3608]
[1732548655559,0.01,96393.0,96389.0,0.051864]
[1732548655866,0.01,96393.0,96391.0,0.051864]
[1732548656047,0.01,96393.0,96392.0,0.00648923]
[1732548656454,0.01,96393.0,96392.0,0.00688923]
[1732548656661,0.01,96393.0,96392.0,0.02663486]
[1732548656871,0.01,96393.0,96392.0,0.01207821]
[1732548657152,0.31508798,96400.0,96392.0,0.01207821]
[1732548657357,0.31508798,96400.0,96393.0,0.01167821]
[1732548657553,0.31508798,96400.0,96399.0,0.0004]
[1732548657753,0.24772,96405.0,96399.0,0.01207821]
[1732548658057,0.24772,96405.0,96404.0,0.0004]
[1732548658279,0.0207672,96413.0,96404.0,0.00559025]
[1732548658554,0.0207672,96413.0,96412.0,0.0004]
[1732548658806,0.0207672,96413.0,96412.0,0.01207719]
[1732548659153,0.0207672,96413.0,96412.0,0.00558986]
[1732548659353,0.0207672,96413.0,96412.0,0.00364373]
[1732548659656,0.4364,96418.0,96399.0,0.3608]
[1732548659953,0.4364,96418.0,96404.0,0.00072469]
[1732548660152,0.4364,96418.0,96405.0,0.00648759]
[1732548660350,0.3608,96419.0,96406.0,0.00721228]
[1732548660544,0.3608,96419.0,96407.0,0.00648759]
[1732548660864,0.3608,96419.0,96417.0,0.0004]
[1732548661253,0.3608,96419.0,96418.0,0.00648656]
[1732548661563,0.3608,96427.0,96418.0,0.00648656]
[1732548661753,0.3608,96427.0,96424.0,0.00072443]
[1732548661988,0.3608,96427.0,96425.0,0.00688656]
[1732548662350,0.3608,96427.0,96425.0,0.0076109]
[1732548662551,0.3608,96427.0,96425.0,0.00688656]
[1732548662752,0.31,96426.0,96417.0,0.0004]
[1732548663062,0.31,96426.0,96383.0,0.36094162]
[1732548663063,0.051851,96415.0,96401.0,0.00072434]
[1732548663257,0.3608,96418.0,96412.0,0.00072434]
[1732548663460,0.3608,96418.0,96391.0,0.3608]
[1732548663651,0.24764,96423.0,96417.0,0.0004]
[1732548663853,0.01,96426.0,96417.0,0.0004]
[1732548664185,0.01,96426.0,96401.0,0.3608]
[1732548664462,0.01,96426.0,96384.0,0.3608]
[1732548664463,0.051857,96404.0,96384.0,0.3608]
[1732548664548,0.24764,96406.0,96384.0,0.3608]
[1732548664953,0.24764,96406.0,96405.0,0.0004]
[1732548665352,0.3608,96406.0,96405.0,0.0004]
[1732548666354,0.3608,96406.0,96405.0,0.02603839]
[1732548666560,0.3608,96406.0,96379.0,8.993e-05]
[1732548666561,0.972,96406.0,96379.0,8.993e-05]
[1732548666774,0.05187,96380.0,96379.0,8.993e-05]
[1732548666998,0.051876,96369.0,96368.0,0.0004]
[1732548667174,0.412676,96369.0,96368.0,0.02603013]
[1732548667452,0.412676,96369.0,96336.0,0.3608]
[1732548667453,0.051886,96350.0,96336.0,0.3608]
[1732548667773,0.051886,96350.0,96336.0,0.38669694]
[1732548667774,0.3608,96348.0,96336.0,0.38669694]
[1732548668013,8.993e-05,96347.0,96336.0,0.02589694]
[1732548668154,8.993e-05,96347.0,96334.0,0.3608]
[1732548668458,0.00160001,96335.0,96334.0,0.3608]
[1732548668858,0.00160001,96335.0,96334.0,0.6722]
[1732548669265,0.00160001,96335.0,96334.0,0.3608]
[1732548669454,0.00160001,96335.0,96328.0,0.31934926]
[1732548669455,0.051896,96331.0,96328.0,0.31934926]
[1732548669655,0.051906,96313.0,96294.0,0.24854748]
[1732548669868,0.3608,96309.0,96292.0,0.24854748]
[1732548670062,0.41431101,96303.0,96292.0,0.24854748]
[1732548670281,0.051917,96293.0,96292.0,0.24854748]
[1732548670476,0.051917,96293.0,96251.0,0.6623]
[1732548670477,0.412717,96293.0,96251.0,0.6594186]
[1732548670653,0.14159471,96261.0,96252.0,0.01363757]
[1732548671004,0.14159471,96280.0,96253.0,0.02013217]
[1732548671005,0.3608,96277.0,96253.0,0.02013217]
[1732548671184,0.3608,96277.0,96260.0,0.3608]
[1732548671185,0.24776175,96276.0,96260.0,0.3608]
[1732548671366,0.051931,96267.0,96261.0,0.00519529]
[1732548671665,0.00012175,96276.0,96262.0,0.36599529]
[1732548671857,0.00012175,96276.0,96251.0,0.38666018]
[1732548671858,0.00012175,96276.0,96267.0,0.3608]
[1732548672052,0.00012175,96276.0,96263.0,0.00324729]
[1732548672053,0.00012175,96276.0,96270.0,0.3608]
[1732548672256,0.00012175,96276.0,96271.0,0.00324814]
[1732548672574,0.051932,96264.0,96262.0,0.0032472]
[1732548672866,0.3608,96263.0,96262.0,0.0032472]
[1732548673264,0.051945,96241.0,96240.0,0.00012732]
[1732548673474,1.457505,96241.0,96240.0,3.2e-07]
[1732548673660,2.07122501,96241.0,96240.0,3.2e-07]
[1732548673872,1.77122501,96241.0,96240.0,3.2e-07]
[1732548674389,2.07134674,96241.0,96240.0,3.2e-07]
[1732548674566,0.00212174,96241.0,96240.0,3.2e-07]
[1732548675566,0.24992174,96241.0,96240.0,3.2e-07]
[1732548676368,0.56164174,96241.0,96240.0,3.2e-07]
[1732548676564,0.56164174,96241.0,96199.0,0.3608]
[1732548676565,0.86164174,96241.0,96185.0,0.3608]
[1732548676784,0.051966,96201.0,96199.0,0.02624811]
[1732548676973,0.41476601,96201.0,96199.0,0.02624811]
[1732548677263,0.05396601,96201.0,96196.0,0.02583999]
[1732548677587,0.05408839,96201.0,96185.0,0.3608]
[1732548677971,0.00212239,96201.0,96194.0,0.3608]
[1732548678267,0.3608,96209.0,96185.0,0.3608]
[1732548678465,0.3608,96209.0,96191.0,0.02649403]
[1732548678466,0.3608,96201.0,96191.0,0.02649403]
[1732548679062,0.00011105,96201.0,96191.0,0.02649403]
[1732548680387,0.00011105,96201.0,96193.0,0.05197]
[1732548680728,0.00011105,96201.0,96191.0,0.02649403]
[1732548680834,0.3608,96229.0,96200.0,0.4608]
[1732548680978,0.051948,96235.0,96214.0,0.051959]
[1732548681165,0.051948,96235.0,96223.0,0.3608]
[1732548681674,8.655e-05,96234.0,96223.0,0.3608]
[1732548681861,8.655e-05,96234.0,96233.0,0.3608]
[1732548682381,0.051953,96225.0,96223.0,0.0264731]
[1732548682570,0.25528876,96224.0,96190.0,0.3608]
[1732548682758,0.25528876,96224.0,96198.0,0.02610945]
[1732548682759,0.3608,96204.0,96198.0,0.02610945]
[1732548682968,0.3608,96204.0,96190.0,0.3608]
[1732548683565,0.3608,96204.0,96197.0,0.02658178]
[1732548683768,0.3608,96204.0,96190.0,0.3608]
[1732548684020,0.051966,96201.0,96186.0,0.02674404]
[1732548684281,0.3608,96204.0,96186.0,0.02674404]
[1732548684689,0.3608,96204.0,96203.0,0.0004]
[1732548684861,0.3608,96214.0,96203.0,0.0004]
[1732548684862,0.051965,96205.0,96203.0,0.0004]
[1732548685064,0.36088876,96224.0,96204.0,0.3608]
[1732548685369,0.36088876,96224.0,96203.0,0.0004]
[1732548685370,0.3608,96216.0,96203.0,0.0004]
[1732548685563,0.3608,96216.0,96204.0,0.0004]
[1732548685776,0.3608,96205.0,96204.0,0.0004]
[1732548685960,0.051966,96201.0,96186.0,0.3608]
[1732548686273,0.051966,96201.0,96175.0,0.3608]
[1732548686573,0.3608,96204.0,96195.0,0.3608]
[1732548686781,0.051966,96202.0,96194.0,0.02577571]
[1732548686967,0.051966,96202.0,96183.0,0.3608]
[1732548686968,0.051966,96202.0,96193.0,0.02562916]
[1732548687282,0.051966,96202.0,96183.0,0.3608]
[1732548687775,0.051966,96202.0,96188.0,0.051973]
[1732548687965,0.051966,96202.0,96191.0,0.02592489]
[1732548688165,0.3608,96213.0,96191.0,0.02592489]
[1732548688367,0.412765,96204.0,96191.0,0.02592489]
[1732548689069,0.3608,96204.0,96191.0,0.07789589]
[1732548689465,0.3608,96204.0,96193.0,0.3608]
[1732548689761,0.3608,96214.0,96193.0,0.3608]
[1732548689970,0.051964,96205.0,96193.0,0.3608]
[1732548690668,0.3608,96214.0,96202.0,0.02132143]
[1732548690977,0.3608,96206.0,96202.0,0.02132143]
[1732548691560,0.051964,96205.0,96202.0,0.02132143]
[1732548691767,0.051964,96205.0,96203.0,0.02132143]
[1732548691768,8.876e-05,96204.0,96203.0,0.02132143]
[1732548692063,0.36088876,96204.0,96203.0,0.02132143]
[1732548693066,8.876e-05,96204.0,96203.0,0.02132143]
[1732548693262,0.051964,96206.0,96203.0,0.02132143]
[1732548693701,0.3608,96213.0,96203.0,0.02132143]
[1732548693940,0.051964,96205.0,96204.0,0.02132143]
[1732548694117,0.412764,96205.0,96204.0,0.02132143]
[1732548698093,0.31184,96204.0,96200.0,0.09005215]
[1732548698276,0.3608,96201.0,96166.0,0.051985]
[1732548698467,0.051984,96169.0,96158.0,0.051989]
[1732548698673,0.051984,96169.0,96155.0,0.6661]
[1732548698674,0.3608,96170.0,96167.0,0.02679529]
[1732548698977,0.6092,96181.0,96169.0,0.0004]
[1732548699170,0.6092,96181.0,96170.0,0.051982]
[1732548699477,0.6092,96181.0,96171.0,0.00325135]
[1732548699685,0.6092,96181.0,96169.0,0.0004]
[1732548699686,0.2484,96181.0,96173.0,0.3608]
[1732548699879,0.2484,96181.0,96174.0,0.051981]
[1732548700379,0.2484,96181.0,96175.0,0.00325119]
[1732548700569,0.2484,96181.0,96176.0,0.00325125]
[1732548700768,0.2484,96181.0,96177.0,0.00325125]
[1732548700968,0.2484,96181.0,96173.0,0.3608]
[1732548701172,0.051978,96179.0,96174.0,0.0032513]
[1732548701373,0.051978,96179.0,96169.0,0.0004]
[1732548701374,0.412778,96179.0,96175.0,0.0032513]
[1732548701585,0.051979,96178.0,96169.0,0.0004]
[1732548701877,0.3608,96179.0,96169.0,0.0004]
[1732548701878,0.051979,96177.0,96170.0,0.00325145]
[1732548702093,0.24844,96182.0,96169.0,0.02674084]
[1732548702275,0.24844,96182.0,96170.0,0.00325157]
[1732548702578,0.24844,96182.0,96181.0,0.0004]
[1732548702774,0.24844,96182.0,96181.0,0.00365157]
[1732548703682,0.24844,96182.0,96181.0,0.0004]
[1732548704283,0.24844,96182.0,96181.0,0.02689936]
[1732548704586,0.24844,96182.0,96181.0,0.0004]
[1732548704780,0.56036,96182.0,96181.0,0.0004]
[1732548704975,0.051983,96170.0,96169.0,0.0004]
[1732548705176,0.412783,96170.0,96169.0,0.0004]
[1732548705577,0.412783,96170.0,96169.0,0.00365192]
[1732548705981,0.412783,96170.0,96169.0,0.0004]
[1732548707577,0.3608,96170.0,96169.0,0.00365188]
[1732548708182,0.051981,96174.0,96169.0,0.00365188]
[1732548708183,0.24848,96171.0,96169.0,0.00365188]
[1732548708383,0.24848,96171.0,96170.0,0.00325188]
[1732548708581,0.24848,96171.0,96170.0,0.00365188]
[1732548709085,0.3608,96178.0,96169.0,0.051983]
[1732548709299,0.3608,96178.0,96167.0,0.3092904]
[1732548709587,0.38160873,96186.0,96177.0,0.0004]
[1732548709588,0.3608,96186.0,96177.0,0.0004]
[1732548709977,0.3608,96186.0,96185.0,0.0004]
[1732548710186,0.3608854,96186.0,96185.0,0.0004]
[1732548710598,0.3608854,96186.0,96185.0,0.02244956]
[1732548711586,0.05196,96213.0,96197.0,0.051968]
[1732548711808,0.051966,96202.0,96200.0,0.3608]
[1732548711986,0.24848,96215.0,96200.0,0.3612]
[1732548712202,0.24848,96208.0,96200.0,0.3612]
[1732548712543,0.051966,96202.0,96200.0,0.3612]
[1732548712886,0.24848,96209.0,96200.0,0.3612]
[1732548712887,0.24848,96209.0,96200.0,0.74395932]
[1732548713388,0.24848,96209.0,96200.0,1.4992171]
[1732548713598,0.24848,96209.0,96200.0,1.18854978]
[1732548713951,0.24848,96209.0,96200.0,1.56489862]
[1732548714164,0.24848,96209.0,96208.0,0.3612]
[1732548714679,0.56561175,96209.0,96190.0,0.73194848]
[1732548714878,0.56561175,96209.0,96182.0,0.3608]
[1732548714879,0.051976,96184.0,96182.0,0.3608]
[1732548715181,0.051976,96184.0,96171.0,0.3608]
[1732548715182,0.051982,96173.0,96171.0,0.3608]
[1732548715388,0.24844,96183.0,96171.0,0.3608]
[1732548715602,0.0012,96172.0,96171.0,0.412782]
[1732548716086,0.3322,96208.0,96171.0,0.412782]
[1732548716087,0.3322,96208.0,96171.0,0.67276]
[1732548716392,0.3322,96208.0,96197.0,0.3608]
[1732548716393,0.051968,96199.0,96197.0,0.3608]
[1732548716591,0.3608,96229.0,96198.0,0.3608]
[1732548716798,0.051961,96212.0,96202.0,0.051966]
[1732548717014,0.051963,96207.0,96203.0,0.0004]
[1732548717287,0.3608,96220.0,96203.0,0.0004]
[1732548717878,0.051959,96215.0,96208.0,0.051962]
[1732548718085,0.051959,96215.0,96211.0,0.3608]
[1732548718286,0.051956,96221.0,96214.0,0.0004]
[1732548718583,0.051956,96221.0,96211.0,0.3608]
[1732548718584,0.24844,96224.0,96220.0,0.3612]
[1732548718886,0.24844,96224.0,96220.0,0.413156]
[1732548719088,0.24844,96224.0,96223.0,0.0004]
[1732548719292,0.300394,96224.0,96220.0,0.3608]
[1732548719492,0.300394,96224.0,96211.0,0.3608]
[1732548719493,0.24844,96224.0,96215.0,0.02156261]
[1732548719693,0.051958,96217.0,96211.0,0.3608]
[1732548719899,0.24844,96224.0,96211.0,0.3608]
[1732548720092,0.051957,96219.0,96211.0,0.38225483]
[1732548720283,0.300394,96224.0,96223.0,0.0004]
[1732548720683,0.300394,96224.0,96195.0,0.3608]
[1732548720684,0.56024,96224.0,96195.0,0.3608]
[1732548720900,0.56024,96224.0,96203.0,0.051965]
[1732548720901,0.24844,96224.0,96203.0,0.051965]
[1732548721084,0.24844,96224.0,96210.0,0.051961]
[1732548721283,0.24844,96224.0,96203.0,0.3608]
[1732548721284,0.02079994,96224.0,96219.0,0.3608]
[1732548721483,0.45767994,96239.0,96219.0,0.3608]
[1732548721684,0.24844,96230.0,96219.0,0.3608]
[1732548721896,0.051954,96224.0,96219.0,0.3608]
[1732548722100,0.26924396,96230.0,96227.0,0.051952]
[1732548722403,0.26924396,96230.0,96227.0,0.3608]
[1732548722404,0.24844,96230.0,96227.0,0.3608]
[1732548722774,0.051951,96229.0,96219.0,0.412756]
[1732548722860,0.051949,96234.0,96219.0,0.3608]
[1732548723135,0.24999938,96233.0,96228.0,0.051951]
[1732548723186,0.24999938,96233.0,96210.0,0.051961]
[1732548723187,0.00155938,96233.0,96232.0,0.0004]
[1732548723387,0.2484,96265.0,96232.0,0.0004]
[1732548723678,0.325,96275.0,96254.0,0.3608]
[1732548723810,0.00155856,96281.0,96274.0,0.3608]
[1732548723811,0.2484,96280.0,96274.0,0.3608]
[1732548723990,0.00155856,96281.0,96280.0,0.051924]
[1732548724202,0.3608,96298.0,96280.0,0.051924]
[1732548724203,0.3608,96298.0,96296.0,0.051915]
[1732548724525,0.1,96300.0,96280.0,0.3608]
[1732548724526,0.1,96300.0,96299.0,0.051913]
[1732548724695,0.00521191,96320.0,96319.0,0.051903]
[1732548724892,0.325,96352.0,96319.0,0.051903]
[1732548724893,0.3608,96350.0,96319.0,1.03308]
[1732548725188,0.00518946,96349.0,96337.0,0.051893]
[1732548725386,0.00518946,96349.0,96334.0,0.3608]
[1732548725882,0.00518946,96349.0,96319.0,0.38303119]
[1732548725883,0.30518946,96349.0,96319.0,0.38303119]
[1732548726017,0.14163106,96330.0,96319.0,0.38303119]
[1732548726197,0.736938,96329.0,96319.0,0.3608]
[1732548726404,0.3608,96320.0,96303.0,0.02231039]
[1732548726734,0.3608,96308.0,96303.0,0.02231039]
[1732548726898,0.0008,96304.0,96303.0,0.02231039]
[1732548727119,0.0008,96304.0,96263.0,0.3608]
[1732548727120,0.21783576,96300.0,96263.0,0.3608]
[1732548727301,0.3608,96264.0,96241.0,0.3608]
[1732548727507,0.3608,96242.0,96217.0,0.3206]
[1732548727704,0.3608,96234.0,96217.0,0.3206]
[1732548727893,0.3608,96234.0,96217.0,0.6324]
[1732548728093,0.3608,96234.0,96233.0,0.051949]
[1732548728304,0.36089944,96234.0,96233.0,0.051949]
[1732548728759,0.36089944,96234.0,96217.0,0.3206]
[1732548728921,0.3608,96223.0,96217.0,0.02251895]
[1732548729096,0.0004,96218.0,96215.0,0.051958]
[1732548729294,0.0004,96218.0,96205.0,0.02150355]
[1732548729498,0.24784,96226.0,96186.0,0.3194]
[1732548729499,0.3608,96206.0,96186.0,0.3194]
[1732548729752,0.3608,96206.0,96170.0,0.21887576]
[1732548729753,0.051966,96202.0,96177.0,0.051979]
[1732548729912,0.051972,96192.0,96163.0,0.3608]
[1732548730200,0.0004,96201.0,96164.0,0.97929071]
[1732548730201,0.3608,96175.0,96164.0,0.97929071]
[1732548730496,0.3608,96175.0,96173.0,0.051981]
[1732548730702,0.3608,96175.0,96164.0,0.32178707]
[1732548730703,0.3608,96175.0,96164.0,0.02178707]
[1732548730898,0.3608,96175.0,96172.0,0.051982]
[1732548731097,0.3608,96175.0,96147.0,0.24784]
[1732548731399,0.3608,96163.0,96162.0,0.051987]
[1732548731898,0.3608,96163.0,96162.0,0.363947]
[1732548732097,0.3608,96163.0,96162.0,0.051987]
[1732548733504,0.36089422,96163.0,96162.0,0.07375649]
[1732548734411,0.36089422,96163.0,96144.0,9.553e-05]
[1732548734604,0.3608,96146.0,96144.0,9.553e-05]
[1732548734976,0.3608,96146.0,96130.0,0.0007]
[1732548734977,0.60868,96145.0,96130.0,0.0007]
[1732548735140,0.3608,96131.0,96130.0,0.0007]
[1732548735620,0.3612,96131.0,96130.0,0.0007]
[1732548735783,0.052007,96126.0,96105.0,0.02225843]
[1732548736000,0.3608,96106.0,96079.0,0.00096]
[1732548736190,0.3608,96104.0,96103.0,0.052019]
[1732548736398,0.3608,96106.0,96103.0,0.052019]
[1732548736692,0.3608,96116.0,96103.0,0.31216]
[1732548736898,0.3608,96116.0,96115.0,0.052013]
[1732548737098,0.304673,96116.0,96115.0,0.052013]
[1732548737300,9.343e-05,96125.0,96124.0,0.052008]
[1732548737491,9.343e-05,96125.0,96124.0,0.364088]
[1732548737801,9.343e-05,96125.0,96124.0,0.364488]
[1732548738192,9.343e-05,96125.0,96124.0,0.0004]
[1732548738395,0.36089343,96125.0,96124.0,0.0004]
[1732548739099,9.343e-05,96125.0,96124.0,0.0004]
[1732548740000,9.343e-05,96125.0,96098.0,0.3608]
[1732548740001,0.97297343,96125.0,96098.0,0.3608]
[1732548740202,0.3608,96105.0,96093.0,0.052025]
[1732548740430,0.3608,96105.0,96084.0,0.052029]
[1732548740715,0.3608,96105.0,96062.0,0.43692]
[1732548740716,0.3608,96105.0,96102.0,0.05202]
[1732548741016,0.3122713,96104.0,96093.0,0.052024]
[1732548741191,0.0001113,96104.0,96095.0,0.052023]
[1732548741392,0.0001113,96104.0,96099.0,0.052021]
[1732548741393,0.0004,96101.0,96099.0,0.052021]
[1732548742102,0.0004,96101.0,96084.0,0.052029]
[1732548742103,0.31256,96101.0,96084.0,0.052029]
[1732548742306,0.0004,96101.0,96084.0,0.052029]
[1732548742524,0.31256,96101.0,96071.0,0.3608]
[1732548742691,0.63338726,96101.0,96077.0,0.052033]
[1732548742903,0.63338726,96101.0,96079.0,0.052032]
[1732548742904,0.3608,96086.0,96079.0,0.052032]
[1732548743198,0.00921263,96085.0,96079.0,0.052032]
[1732548743403,0.28325263,96084.0,96072.0,0.052036]
[1732548743600,0.00921263,96083.0,96076.0,0.052034]
[1732548743795,0.3608,96077.0,96076.0,0.052034]
[1732548744104,0.37009214,96077.0,96069.0,0.052038]
[1732548744302,0.32145263,96076.0,96069.0,0.052038]
[1732548744505,0.00961263,96076.0,96060.0,0.3608]
[1732548744734,0.0004,96076.0,96075.0,0.05213082]
[1732548745027,0.36087951,96077.0,96075.0,0.05213082]
[1732548745255,5.1e-07,96077.0,96076.0,0.67344]
[1732548746305,5.1e-07,96077.0,96076.0,0.0004]
[1732548746709,0.67304051,96077.0,96076.0,0.0004]